bitfinex/quotes_ETHUSD_20241104
["timestamp","ask_amount","ask_price","bid_price","bid_amount"]
[1730764596262,0.21149234,2399.5,2399.2,4.16804]
[1730764597055,0.21149234,2399.5,2399.1,4.16821]
[1730764597447,0.21149234,2399.5,2399.2,4.42497087]
[1730764597622,0.21149234,2399.5,2399.2,4.16803]
[1730764598324,0.21149234,2399.5,2399.3,0.25698901]
[1730764598524,0.21149234,2399.5,2399.2,4.16803]
[1730764599353,0.21149234,2399.5,2399.3,0.2569953]
[1730764599539,0.21149234,2399.5,2399.4,4.1677]
[1730764600065,3.8314,2399.8,2399.4,4.1677]
[1730764600229,0.21154482,2399.5,2399.4,4.1677]
[1730764600457,3.8314,2399.8,2399.4,5.25831204]
[1730764600797,3.8314,2399.8,2399.4,4.1677]
[1730764600963,0.21154482,2399.7,2399.5,0.25706345]
[1730764601295,7.99842,2399.8,2399.4,4.1677]
[1730764601497,0.21154482,2399.6,2399.5,0.25708144]
[1730764601698,3.8314,2399.8,2399.5,4.42454144]
[1730764601854,3.8314,2399.8,2399.5,4.16746]
[1730764601855,0.21154482,2399.6,2399.5,4.16746]
[1730764602054,4.16698,2399.9,2399.5,5.33958425]
[1730764602263,0.21164976,2399.6,2399.5,5.082506]
[1730764602499,4.16698,2399.9,2399.5,5.33956113]
[1730764602796,4.16698,2399.9,2399.5,5.082506]
[1730764602973,0.21159729,2399.8,2399.6,0.25708458]
[1730764603175,0.21159729,2399.8,2399.5,5.082506]
[1730764603494,0.21159729,2399.8,2399.6,0.25705884]
[1730764603699,0.21159729,2399.8,2399.5,5.082506]
[1730764603858,0.21159729,2399.8,2399.6,0.25713412]
[1730764604054,0.21159729,2399.8,2399.5,5.082506]
[1730764604305,0.21159729,2399.8,2399.6,0.2571346]
[1730764604501,0.21159729,2399.8,2399.7,0.2571346]
[1730764605063,3.0,2400.0,2399.7,4.4243046]
[1730764605399,4.16709,2399.8,2399.2,4.16805]
[1730764605561,4.16709,2399.8,2399.3,4.83645909]
[1730764605562,3.0,2399.7,2399.3,4.83645909]
[1730764605761,3.0,2399.7,2399.4,0.2571435]
[1730764605961,0.21200205,2399.6,2399.3,4.16787]
[1730764606191,0.21200205,2399.6,2399.4,0.25716692]
[1730764606400,0.21200205,2399.6,2399.3,4.16787]
[1730764606573,0.21200205,2399.6,2399.4,0.25716365]
[1730764606771,0.21200205,2399.6,2399.3,5.001448]
[1730764607097,0.21200205,2399.6,2399.4,0.25716088]
[1730764607306,0.21200205,2399.6,2399.5,0.25716088]
[1730764607663,3.0,2399.8,2399.5,0.25716088]
[1730764607921,0.21200205,2399.6,2399.3,5.001448]
[1730764608120,7.16707,2399.8,2399.4,0.75728517]
[1730764608318,0.21200205,2399.5,2399.4,0.5001448]
[1730764608485,7.16707,2399.8,2399.5,0.25714032]
[1730764608680,7.16707,2399.8,2399.4,0.5001448]
[1730764609785,7.16707,2399.8,2399.5,0.25713181]
[1730764609998,7.16707,2399.8,2399.4,0.5001448]
[1730764610179,7.16707,2399.8,2399.5,0.25713214]
[1730764610381,0.55,2399.7,2399.1,4.16808]
[1730764610602,4.16736,2399.6,2399.2,0.6685466]
[1730764610823,4.16736,2399.6,2399.3,0.25712716]
[1730764611124,4.16736,2399.6,2399.4,0.2571449]
[1730764611297,4.16736,2399.6,2399.2,4.16804]
[1730764611495,4.16736,2399.6,2399.3,0.25715786]
[1730764611715,4.16736,2399.6,2399.4,0.25715786]
[1730764612041,4.16736,2399.6,2399.2,4.25139262]
[1730764612223,4.16736,2399.6,2399.3,0.25715949]
[1730764612426,9.63946196,2399.6,2399.4,0.25715949]
[1730764612741,11.37512116,2399.6,2399.1,4.16808]
[1730764612913,9.63946196,2399.6,2399.2,0.25716405]
[1730764613114,9.63946196,2399.6,2399.3,0.25716405]
[1730764613410,1.30463196,2399.5,2399.1,4.16808]
[1730764613613,1.30463196,2399.5,2399.2,0.25717144]
[1730764613814,1.30463196,2399.5,2399.3,0.25717144]
[1730764614014,1.30463196,2399.5,2399.1,4.16808]
[1730764614209,1.30463196,2399.5,2399.2,0.25717577]
[1730764614523,1.30463196,2399.5,2399.3,0.25717577]
[1730764614721,1.30463196,2399.5,2399.1,4.16808]
[1730764614905,0.21184465,2399.4,2399.2,0.25719009]
[1730764615100,0.21184465,2399.4,2399.3,0.25719009]
[1730764615835,0.21184465,2399.4,2399.3,0.25721423]
[1730764616036,0.21184465,2399.4,2399.3,0.51443164]
[1730764616215,0.21184465,2399.4,2399.3,0.25721741]
[1730764618025,0.21184465,2399.4,2399.3,0.25730707]
[1730764618752,0.21184465,2399.4,2399.3,5.03443691]
[1730764619052,0.21184465,2399.4,2399.3,5.36279787]
[1730764619250,0.21184465,2399.4,2399.3,0.52589691]
[1730764619451,1.30463196,2399.5,2399.3,0.783217]
[1730764619617,1.5163117,2399.4,2399.3,0.52589691]
[1730764619945,1.5163117,2399.4,2399.3,5.36293538]
[1730764620246,0.21167974,2399.4,2399.3,5.36293538]
[1730764620445,0.21167974,2399.4,2399.3,0.25736244]
[1730764620446,1.95087858,2399.4,2399.3,0.25736244]
[1730764620747,2.38954698,2399.4,2398.9,4.16856]
[1730764620902,1.30696863,2399.1,2399.0,0.66918628]
[1730764621108,1.5185884,2399.1,2399.0,0.66918628]
[1730764621548,1.5185884,2399.1,2399.0,4.83758628]
[1730764621720,1.5185884,2399.1,2399.0,0.66918628]
[1730764622048,1.5185884,2399.1,2399.0,0.25737898]
[1730764625548,1.5185884,2399.1,2399.0,0.25726055]
[1730764625749,4.16842,2399.0,2398.6,4.16901]
[1730764625954,1.30656237,2398.8,2398.7,0.25726275]
[1730764626452,1.51782977,2398.8,2398.7,0.25726275]
[1730764628012,6.23657977,2398.8,2398.7,0.25726275]
[1730764628240,4.16944,2398.4,2398.3,0.2571052]
[1730764628559,4.16944,2398.4,2397.9,0.41107891]
[1730764628560,4.16964,2398.3,2397.9,0.41107891]
[1730764628756,4.16964,2398.3,2398.0,0.256925]
[1730764629061,0.21109494,2398.2,2397.9,4.17031]
[1730764629211,0.21109494,2398.2,2398.0,4.42705435]
[1730764629412,1.30510294,2398.5,2398.0,5.03818509]
[1730764629624,0.21082494,2398.4,2398.1,4.42650407]
[1730764629843,1.30510294,2398.5,2398.1,4.16979]
[1730764630054,0.21081743,2398.3,2398.1,4.16979]
[1730764630223,1.30510294,2398.5,2398.1,4.16979]
[1730764630418,0.21081743,2398.4,2398.1,4.16979]
[1730764630772,0.21081743,2398.3,2398.1,8.33967]
[1730764631050,8.47428294,2398.6,2398.1,8.33966]
[1730764631252,0.21081743,2398.2,2398.1,8.33966]
[1730764631424,10.18513612,2398.6,2397.7,8.30827636]
[1730764631425,4.30510294,2398.6,2398.2,4.16966]
[1730764631627,0.21081743,2398.5,2398.2,4.16966]
[1730764632149,0.21081743,2398.5,2398.0,4.17002]
[1730764632150,0.21081743,2398.5,2398.0,4.17003]
[1730764632314,4.16948,2398.4,2397.8,4.17036]
[1730764632655,4.71971,2398.3,2397.8,4.17036]
[1730764633015,0.21077993,2398.2,2397.8,4.17036]
[1730764633354,0.21077993,2398.2,2397.6,4.17072]
[1730764633355,3.0,2398.0,2397.6,4.17072]
[1730764633849,0.21074242,2397.9,2397.6,4.17072]
[1730764634053,0.21074242,2397.9,2397.6,8.34147]
[1730764634842,0.21074242,2397.9,2397.6,4.17072]
[1730764636639,0.21074242,2397.9,2397.7,4.17064]
[1730764636846,0.21074242,2397.9,2397.8,4.17048]
[1730764637219,0.55,2398.1,2397.8,4.17048]
[1730764637418,0.20952708,2398.0,2397.8,4.17048]
[1730764638119,0.20952708,2398.0,2397.9,4.17031]
[1730764638352,4.16929,2398.5,2397.9,4.25370802]
[1730764638553,0.20960963,2398.4,2398.1,4.16986]
[1730764638740,4.1691,2398.6,2398.1,4.16986]
[1730764639252,0.20960963,2398.5,2398.1,4.16986]
[1730764640046,4.37896963,2398.5,2398.0,4.17006]
[1730764640450,8.54836963,2398.5,2398.0,4.17006]
[1730764641663,4.37896963,2398.5,2398.0,4.17006]
[1730764642365,8.54833963,2398.5,2398.0,4.17006]
[1730764642664,4.37896963,2398.5,2398.0,4.17006]
[1730764642823,4.37896963,2398.5,2398.0,4.65199784]
[1730764643957,4.37896963,2398.5,2398.0,8.82202784]
[1730764644155,0.20960963,2398.5,2398.2,4.1697]
[1730764644372,3.0,2398.6,2398.2,4.1697]
[1730764644547,0.75978972,2398.5,2398.2,4.1697]
[1730764644935,0.20978972,2398.5,2398.2,4.63494378]
[1730764646524,0.20978972,2398.5,2398.2,0.46516378]
[1730764646727,0.20978972,2398.5,2398.1,9.10638]
[1730764647035,0.20978972,2398.5,2398.1,4.9365]
[1730764647242,0.55,2398.3,2397.8,0.7994]
[1730764647534,0.7845,2398.2,2397.8,4.17044]
[1730764648067,0.20978972,2398.1,2397.8,4.17044]
[1730764648430,0.20978972,2398.1,2397.9,4.17028]
[1730764649535,0.20978972,2398.1,2398.0,4.17014]
[1730764649733,0.8223,2398.4,2398.0,4.42664601]
[1730764649939,0.21005989,2398.3,2398.0,8.34028]
[1730764650166,0.21005989,2398.3,2398.0,4.17014]
[1730764650866,4.37968989,2398.3,2397.9,5.826972]
[1730764651162,0.21005989,2398.3,2397.9,5.004372]
[1730764651733,0.21005989,2398.3,2398.0,4.17014]
[1730764651933,0.21005989,2398.3,2398.1,4.16996]
[1730764652255,0.21005989,2398.3,2398.0,4.6705612]
[1730764652633,0.21005989,2398.3,2398.0,8.8405912]
[1730764652833,0.21005989,2398.3,2398.0,4.6704512]
[1730764653064,0.21005989,2398.3,2398.0,8.8405012]
[1730764653240,0.21005989,2398.3,2398.0,4.6704512]
[1730764653443,0.21005989,2398.3,2398.1,4.42670924]
[1730764653671,0.21005989,2398.3,2398.1,4.16988]
[1730764653869,0.21005989,2398.3,2398.0,4.6704512]
[1730764654168,0.21005989,2398.3,2398.1,0.25682801]
[1730764654374,0.21005989,2398.3,2398.0,8.8404912]
[1730764654688,0.21005989,2398.3,2398.1,0.2569693]
[1730764654832,0.21005989,2398.3,2398.0,8.8405112]
[1730764655037,0.21005989,2398.3,2398.1,0.25696696]
[1730764655251,0.21005989,2398.3,2398.0,4.6704512]
[1730764655466,0.21005989,2398.3,2398.1,0.25698471]
[1730764655662,0.21005989,2398.3,2398.2,0.25698471]
[1730764656254,0.21005989,2398.3,2398.2,4.42677471]
[1730764656972,0.21005989,2398.3,2398.2,4.9957943]
[1730764657283,1.332,2398.8,2398.4,4.16932]
[1730764657483,1.332,2398.8,2398.5,0.25698471]
[1730764657645,1.332,2398.8,2398.6,0.25698471]
[1730764657979,0.782,2398.8,2398.4,4.16932]
[1730764658186,0.782,2398.8,2398.5,0.25729935]
[1730764658344,0.782,2398.8,2398.4,4.16932]
[1730764658547,7.95077,2398.8,2398.5,0.25726586]
[1730764658859,7.95077,2398.8,2398.4,4.16932]
[1730764659073,7.95077,2398.8,2398.5,0.25726591]
[1730764659272,7.95077,2398.8,2398.4,4.16932]
[1730764659573,7.95077,2398.8,2398.5,0.25722699]
[1730764659746,7.95077,2398.8,2398.4,4.16932]
[1730764660066,0.21031492,2398.7,2398.5,0.25722708]
[1730764660276,0.21031492,2398.7,2398.4,4.16932]
[1730764660475,7.95077,2398.8,2398.5,0.25719949]
[1730764660646,0.21031492,2398.6,2398.4,4.16932]
[1730764660990,7.95077,2398.8,2398.5,0.25719373]
[1730764661191,7.95077,2398.8,2398.4,4.16932]
[1730764661486,7.95077,2398.8,2398.5,0.25717159]
[1730764661487,4.16901,2398.7,2398.5,0.25717159]
[1730764661665,4.94649,2398.6,2397.9,4.97736]
[1730764661851,4.94649,2398.6,2398.0,4.83885371]
[1730764661852,4.16938,2398.5,2398.0,4.83885371]
[1730764662187,4.94649,2398.6,2398.1,4.92198457]
[1730764662385,4.94649,2398.6,2398.2,0.25719528]
[1730764662585,4.94649,2398.6,2398.3,0.25719528]
[1730764662742,4.94649,2398.6,2398.1,4.25326086]
[1730764663086,0.7983,2399.0,2398.8,4.16874]
[1730764663299,0.7983,2399.0,2398.7,4.16891]
[1730764663495,0.7983,2399.0,2398.7,4.25227988]
[1730764663946,0.7983,2399.0,2398.7,4.16891]
[1730764664166,0.7983,2399.0,2398.6,4.16897]
[1730764664373,0.7983,2399.0,2398.7,0.2571387]
[1730764665173,0.7983,2399.0,2398.6,8.33799]
[1730764665407,2.10340294,2399.0,2398.6,4.16897]
[1730764665604,0.7983,2399.0,2398.7,4.16888]
[1730764666790,0.7983,2399.0,2398.7,5.002665]
[1730764667112,1.30510294,2399.1,2398.9,4.16857]
[1730764668179,1.30510294,2399.1,2398.7,5.002665]
[1730764668510,1.30510294,2399.1,2398.7,9.171495]
[1730764668902,1.30510294,2399.1,2398.8,4.16866]
[1730764670435,1.30510294,2399.0,2398.8,4.16866]
[1730764670917,1.74013726,2399.1,2398.9,4.16857]
[1730764670918,1.30510294,2399.1,2398.9,4.16857]
[1730764671523,1.30510294,2399.0,2398.9,4.16857]
[1730764672090,1.30510294,2399.1,2398.9,4.16857]
[1730764672613,1.30510294,2399.1,2398.8,4.16873]
[1730764673727,1.30510294,2399.1,2398.8,8.3374]
[1730764673931,1.30510294,2399.0,2398.8,8.3374]
[1730764674091,1.30510294,2399.1,2398.8,5.1680685]
[1730764674291,1.30510294,2399.1,2398.8,4.16867]
[1730764674834,0.7701,2399.0,2398.7,4.16889]
[1730764674997,0.21103497,2398.9,2398.7,4.16889]
[1730764676234,0.21103497,2398.9,2398.7,5.002674]
[1730764676433,0.21103497,2398.9,2398.8,4.16875]
[1730764680366,0.21103497,2398.9,2398.7,4.16888]
[1730764681337,1.51613791,2398.9,2398.7,4.16888]
[1730764681834,1.51613791,2398.9,2398.0,4.94104]
[1730764681835,0.7864,2398.6,2398.0,4.94104]
[1730764682069,0.7864,2398.3,2398.1,0.25710383]
[1730764682251,0.21103497,2398.2,2397.9,4.17028]
[1730764682570,0.7864,2398.3,2397.9,8.3405]
[1730764682571,2.09051787,2398.3,2397.9,8.3405]
[1730764682878,0.21103497,2398.2,2398.0,4.42724171]
[1730764683125,0.21103497,2398.2,2398.0,4.17013]
[1730764683295,4.30411787,2398.4,2398.1,4.16996]
[1730764683591,4.30411787,2398.4,2398.2,4.16974]
[1730764683739,4.30411787,2398.4,2398.1,4.16996]
[1730764685235,4.30411787,2398.4,2397.9,8.34036]
[1730764685451,4.30411787,2398.4,2398.0,4.42720826]
[1730764685684,4.30411787,2398.4,2398.1,4.16996]
[1730764686438,1.30411787,2398.4,2398.2,4.16976]
[1730764686681,2.51023726,2398.5,2398.2,0.89378865]
[1730764686682,1.30411787,2398.5,2398.2,0.89378865]
[1730764686887,1.30411787,2398.6,2398.4,4.16944]
[1730764687076,1.30411787,2398.6,2398.5,4.16927]
[1730764687244,1.30411787,2398.7,2398.5,4.16927]
[1730764687567,1.30411787,2398.6,2398.5,4.16927]
[1730764687749,1.30411787,2398.6,2398.3,4.16959]
[1730764688062,1.30411787,2398.6,2398.3,8.836999]
[1730764688256,1.30411787,2398.6,2398.3,4.667459]
[1730764688468,1.30411787,2398.6,2398.3,4.16946]
[1730764689075,1.30411787,2398.6,2398.3,8.33899]
[1730764689348,1.30411787,2398.6,2398.4,4.1694]
[1730764690183,0.21053248,2398.5,2398.4,4.1694]
[1730764690784,0.21053248,2398.5,2398.4,9.14575812]
[1730764690949,1.30411787,2398.9,2398.4,10.65091932]
[1730764691149,0.21056248,2398.5,2398.4,10.39389781]
[1730764691359,1.30411787,2399.0,2398.8,4.16874]
[1730764691550,1.30411787,2399.0,2398.8,8.33739]
[1730764691773,0.21056248,2398.9,2398.8,4.16865]
[1730764693303,0.21056248,2398.9,2398.7,4.92539]
[1730764693589,0.21056248,2398.9,2398.7,4.92534]
[1730764693779,0.21056248,2398.9,2398.7,9.09418]
[1730764693978,0.21056248,2398.9,2398.8,4.16875]
[1730764694179,0.21056248,2398.9,2398.7,4.92534]
[1730764694404,1.51468035,2398.9,2398.7,4.16884]
[1730764694908,0.21056248,2398.9,2398.7,4.16884]
[1730764695077,0.21056248,2398.9,2398.7,8.33766]
[1730764695277,1.51468035,2398.9,2398.7,8.33766]
[1730764695489,1.51468035,2398.9,2398.7,4.16882]
[1730764695808,0.21056248,2398.9,2398.7,4.16882]
[1730764695959,1.51468035,2398.9,2398.7,4.16882]
[1730764697566,1.51468035,2398.9,2398.7,4.16881]
[1730764697876,1.30411787,2398.8,2398.7,4.16881]
[1730764698071,1.51526532,2398.8,2398.7,4.16881]
[1730764698277,0.21114745,2398.8,2398.7,4.16881]
[1730764699878,0.02205031,2398.8,2398.7,5.0026]
[1730764700091,1.30411787,2399.1,2399.0,4.1684]
[1730764700409,2.17654348,2399.4,2399.0,4.1684]
[1730764700410,1.30411787,2399.4,2399.3,4.16788]
[1730764700703,2.09581787,2399.7,2399.6,4.16736]
[1730764700917,1.30411787,2399.8,2399.7,4.16718]
[1730764701068,1.30411787,2399.9,2399.8,4.16701]
[1730764701268,2.09581787,2400.1,2399.8,4.16701]
[1730764702407,0.7917,2400.1,2399.8,4.16701]
[1730764704096,0.7917,2400.1,2399.5,0.7885]
[1730764704293,0.7917,2400.1,2400.0,4.16666]
[1730764704695,2.11991787,2400.4,2400.1,4.16646]
[1730764704897,0.8158,2400.4,2400.1,4.16646]
[1730764705693,0.8158,2400.4,2400.2,4.16623]
[1730764705831,0.8158,2400.4,2400.1,8.33286]
[1730764706340,0.8158,2400.4,2400.2,4.16631]
[1730764706499,3.8614101,2400.6,2400.3,4.16614]
[1730764706702,3.8614101,2400.6,2400.2,4.16631]
[1730764707044,5.2110669,2400.6,2400.2,4.16631]
[1730764707602,0.19782983,2400.5,2400.2,4.16631]
[1730764709821,0.19782983,2400.5,2400.2,4.16621]
[1730764711416,0.19782983,2400.5,2400.2,8.33244]
[1730764711757,0.19782983,2400.5,2400.2,4.16621]
[1730764712136,0.19782983,2400.5,2400.0,4.16657]
[1730764712312,3.8024,2400.2,2399.3,4.908769]
[1730764712512,3.8024,2400.2,2399.7,4.16709]
[1730764712757,0.19885308,2400.1,2399.7,4.16709]
[1730764713114,0.19885308,2400.1,2399.8,4.16688]
[1730764713744,0.19885308,2400.1,2399.8,4.16698]
[1730764717255,0.19885308,2400.1,2399.7,4.16717]
[1730764718250,0.8203,2400.0,2399.6,4.16725]
[1730764718454,4.987,2400.0,2399.6,4.16725]
[1730764718657,0.19867257,2399.9,2399.6,4.16725]
[1730764719125,0.19867257,2399.9,2399.5,4.16753]
[1730764719326,0.19867257,2399.9,2399.7,4.16718]
[1730764719931,0.19867257,2399.9,2399.6,4.16735]
[1730764720517,0.19867257,2399.9,2399.6,8.33462]
[1730764720925,0.19867257,2399.9,2399.8,4.16701]
[1730764721127,0.8287,2400.2,2399.7,0.7531]
[1730764721363,0.8287,2400.2,2400.0,4.16654]
[1730764721364,0.19863496,2400.1,2400.0,4.16654]
[1730764721768,0.8287,2400.5,2400.0,4.16654]
[1730764721968,0.8287,2400.5,2400.1,4.16641]
[1730764722135,0.19863496,2400.4,2400.1,4.16641]
[1730764722479,0.19863496,2400.4,2400.1,0.833295]
[1730764722657,0.19863496,2400.4,2400.0,4.16654]
[1730764723328,0.19863496,2400.4,2399.8,4.16686]
[1730764723329,0.8033,2400.3,2399.9,4.16682]
[1730764723726,0.19863496,2400.2,2399.8,4.16686]
[1730764723931,4.9695,2400.3,2399.8,8.33377]
[1730764724233,0.19889067,2400.2,2399.8,8.33377]
[1730764724658,4.9695,2400.3,2399.8,4.16686]
[1730764724868,4.9695,2400.3,2399.9,4.16682]
[1730764724869,0.19889067,2400.1,2399.9,4.16682]
[1730764725065,4.9695,2400.3,2399.9,4.16682]
[1730764725277,0.19889067,2400.0,2399.9,4.16682]
[1730764725682,4.9695,2400.3,2399.9,4.16682]
[1730764725874,0.19889067,2400.0,2399.8,4.16686]
[1730764726080,4.96965,2400.2,2399.8,4.16686]
[1730764726240,0.19889067,2399.9,2399.8,4.16686]
[1730764726439,0.8033,2400.2,2399.8,8.33377]
[1730764726677,0.19877035,2399.9,2399.8,8.33377]
[1730764726882,0.8033,2400.2,2399.8,8.33377]
[1730764727080,0.19877035,2399.9,2399.8,8.33377]
[1730764727547,0.8033,2400.2,2399.8,8.33377]
[1730764727748,0.19877035,2399.9,2399.8,8.33377]
[1730764728079,0.8033,2400.2,2399.9,4.16683]
[1730764728276,5.066541,2400.2,2399.9,4.16683]
[1730764728653,5.066541,2400.2,2399.8,4.16686]
[1730764729060,5.066541,2400.2,2399.9,4.16682]
[1730764729461,5.066541,2400.2,2399.8,4.16686]
[1730764729681,5.066541,2400.2,2399.8,8.33379]
[1730764729979,5.066541,2400.2,2399.8,4.16686]
[1730764730145,5.066541,2400.2,2399.8,8.33377]
[1730764730568,5.066541,2400.2,2399.8,4.16686]
[1730764731282,5.066541,2400.2,2399.8,8.33379]
[1730764731590,5.066541,2400.2,2399.8,4.16686]
[1730764731749,5.066541,2400.2,2399.9,0.25777838]
[1730764731946,5.066541,2400.2,2399.8,4.16686]
[1730764732146,5.066541,2400.2,2399.9,0.25777667]
[1730764732352,5.066541,2400.2,2399.8,4.16686]
[1730764732555,5.066541,2400.2,2399.9,0.25776938]
[1730764732786,5.066541,2400.2,2399.8,4.16686]
[1730764732988,5.066541,2400.2,2399.9,0.25777087]
[1730764733207,5.066541,2400.2,2399.8,4.16686]
[1730764733379,5.066541,2400.2,2399.9,0.25776031]
[1730764733586,5.066541,2400.2,2399.8,4.16686]
[1730764733753,5.066541,2400.2,2399.9,0.25776444]
[1730764734072,5.066541,2400.2,2400.0,0.25776289]
[1730764734275,0.8033,2400.2,2399.9,4.16677]
[1730764734479,0.8033,2400.2,2400.0,0.2577625]
[1730764734655,0.8033,2400.2,2399.9,4.16677]
[1730764734856,0.8033,2400.2,2400.0,0.25775826]
[1730764735173,0.19855979,2400.1,2399.9,4.16677]
[1730764735347,0.19855979,2400.1,2400.0,0.25776583]
[1730764736010,0.19855979,2400.1,2400.0,0.25776548]
[1730764738623,0.19855979,2400.1,2400.0,0.25784093]
[1730764741282,0.19855979,2400.1,2400.0,0.25796212]
[1730764741689,0.19855979,2400.1,2399.7,4.16709]
[1730764741896,0.8095,2400.0,2399.8,0.67075606]
[1730764742098,0.8095,2400.0,2399.9,0.25797698]
[1730764742512,4.97616,2400.0,2399.9,0.25797698]
[1730764742816,6.19485251,2400.0,2399.9,0.25797698]
[1730764742979,6.19485251,2400.0,2399.6,4.16731]
[1730764743175,4.97616,2400.0,2399.7,0.67096303]
[1730764743394,6.28027787,2400.0,2399.8,0.25805652]
[1730764743696,6.28027787,2400.0,2399.6,4.16731]
[1730764744030,6.28027787,2400.0,2399.7,0.67089401]
[1730764744330,1.30411787,2399.9,2399.8,0.25803209]
[1730764745031,1.30411787,2399.9,2399.8,0.25800914]
[1730764745399,1.74013726,2399.9,2399.8,0.25800914]
[1730764746046,1.74013726,2399.9,2399.6,4.16731]
[1730764746248,1.30747532,2399.8,2399.7,0.25798729]
[1730764746511,1.74013726,2399.8,2399.7,0.25798729]
[1730764747387,1.74013726,2399.8,2399.7,4.86769702]
[1730764747648,0.8095,2400.0,2399.7,4.86769702]
[1730764747649,1.30783993,2400.0,2399.8,4.16701]
[1730764747831,1.30783993,2400.1,2400.0,0.8099]
[1730764748032,1.30783993,2400.1,2400.0,1.63263477]
[1730764748614,1.30783993,2400.2,2400.0,1.63263477]
[1730764748814,1.74013726,2400.3,2400.1,4.42447729]
[1730764748815,1.30783993,2400.3,2400.1,4.42447729]
[1730764749049,1.30783993,2400.3,2400.2,4.42429729]
[1730764750153,1.50614395,2400.3,2400.2,4.42429729]
[1730764750318,0.19830402,2400.3,2400.2,4.42429729]
[1730764750512,0.19830402,2400.3,2400.2,5.26311944]
[1730764750714,0.19830402,2400.3,2400.2,5.17979729]
[1730764750931,0.19830402,2400.3,2400.2,6.94144744]
[1730764751177,0.0594101,2400.6,2400.3,0.7555]
[1730764751467,0.0594101,2400.6,2400.5,4.16579]
[1730764751670,0.0594101,2400.6,2400.5,4.42377729]
[1730764751966,0.0594101,2400.6,2400.5,4.42334512]
[1730764752132,0.0594101,2400.6,2400.5,5.35782263]
[1730764752333,0.0594101,2400.6,2400.5,5.35769556]
[1730764752559,0.0594101,2400.6,2400.5,5.10026751]
[1730764752865,0.0594101,2400.6,2400.5,5.35769432]
[1730764753071,0.0594101,2400.6,2400.5,5.10026751]
[1730764754337,0.0594101,2400.6,2400.5,5.87246751]
[1730764754553,0.0594101,2400.6,2400.5,6.12968956]
[1730764755429,0.0594101,2400.6,2400.5,5.87246751]
[1730764755976,0.0594101,2400.6,2400.5,6.12961693]
[1730764756386,0.0594101,2400.6,2400.5,5.87246751]
[1730764756670,0.0594101,2400.6,2400.5,5.10026751]
[1730764756844,0.0594101,2400.6,2400.4,8.33186]
[1730764757240,0.0594101,2400.6,2400.5,4.16579]
[1730764765386,0.25899249,2400.6,2400.5,4.16579]
[1730764765559,0.0594101,2400.6,2400.2,5.43208364]
[1730764765760,0.19958239,2400.5,2400.3,4.16614]
[1730764766203,0.19958239,2400.5,2400.3,5.20205236]
[1730764769659,0.19958239,2400.5,2400.4,4.16597]
[1730764772413,0.19958239,2400.5,2400.4,5.01838518]
[1730764772614,0.19958239,2400.5,2400.4,5.19206095]
[1730764772809,0.0594101,2400.6,2400.5,4.16579]
[1730764773129,0.0594101,2400.6,2400.5,5.62178033]
[1730764773739,0.0594101,2400.6,2400.4,4.16597]
[1730764774245,0.0594101,2400.6,2400.3,4.16605]
[1730764775011,0.0594101,2400.6,2400.3,8.3321]
[1730764775246,0.0594101,2400.6,2400.3,4.16605]
[1730764775846,1.36725003,2400.6,2400.3,4.16605]
[1730764776034,0.0594101,2400.6,2400.3,4.16605]
[1730764776236,1.36725003,2400.6,2400.3,4.16605]
[1730764776551,0.0594101,2400.6,2400.3,4.16605]
[1730764776954,0.0594101,2400.6,2400.1,4.16637]
[1730764776955,5.53291003,2400.6,2400.1,4.16637]
[1730764777175,9.25580993,2400.5,2400.1,4.16647]
[1730764777388,1.30783993,2400.4,2400.1,4.16647]
[1730764779948,0.19913881,2400.3,2400.1,4.16647]
[1730764780773,0.19913881,2400.3,2400.2,5.19721877]
[1730764780972,0.7603,2400.3,2399.9,4.16671]
[1730764781172,0.19910121,2400.2,2400.0,4.91816936]
[1730764781478,0.7603,2400.3,2400.1,0.25761836]
[1730764781633,0.7603,2400.3,2400.0,4.660551]
[1730764781834,0.7603,2400.3,2400.1,0.25758841]
[1730764782070,0.7603,2400.3,2400.0,4.660551]
[1730764782254,0.7603,2400.3,2400.1,1.14031098]
[1730764782462,0.7603,2400.3,2400.1,0.8827261]
[1730764783137,0.7603,2400.3,2400.0,4.660551]
[1730764783338,2.06813993,2400.3,2400.0,4.16655]
[1730764784044,5.47422993,2400.2,2399.5,4.95162]
[1730764784243,1.30783993,2400.0,2399.6,4.42484102]
[1730764784476,1.30783993,2400.0,2399.7,0.25756102]
[1730764784680,1.30783993,2400.0,2399.6,4.16728]
[1730764784881,1.30783993,2400.0,2399.7,0.25746635]
[1730764785091,1.30783993,2400.0,2399.6,0.91189]
[1730764785257,1.30783993,2400.0,2399.5,0.7842]
[1730764785456,1.30783993,2400.0,2399.6,0.25746597]
[1730764785672,1.30783993,2400.0,2399.7,0.25740413]
[1730764785976,1.30783993,2400.0,2399.5,0.7842]
[1730764786183,1.30783993,2400.0,2399.6,0.25740373]
[1730764786356,1.30783993,2400.0,2399.6,0.27937045]
[1730764787288,2.49983726,2400.1,2399.6,0.27937045]
[1730764787289,2.06753993,2400.1,2399.7,0.25735782]
[1730764787588,2.06753993,2400.1,2399.8,0.25731281]
[1730764787789,2.06753993,2400.1,2399.5,0.7842]
[1730764787790,0.7597,2400.1,2399.5,0.7842]
[1730764787990,0.7597,2400.1,2399.6,0.66901024]
[1730764788194,0.7597,2400.1,2399.7,0.25730551]
[1730764788344,2.06753993,2400.1,2399.6,0.41171132]
[1730764788545,2.06753993,2400.1,2399.7,0.25728916]
[1730764788784,2.06753993,2400.1,2399.6,0.41167744]
[1730764788957,2.06753993,2400.1,2399.7,0.2572885]
[1730764789163,2.06753993,2400.1,2399.6,0.41167847]
[1730764789361,2.06753993,2400.1,2399.7,0.25727344]
[1730764789582,4.30783993,2400.2,2399.8,0.25725823]
[1730764789745,1.30783993,2400.2,2399.8,0.8265]
[1730764792295,1.30783993,2400.1,2399.8,0.8265]
[1730764792643,1.30783993,2400.2,2399.8,0.8265]
[1730764793547,1.30783993,2400.1,2399.5,1.19504921]
[1730764793773,1.30783993,2400.1,2399.6,0.66893119]
[1730764794082,1.30783993,2400.1,2399.7,0.25728198]
[1730764794296,1.30783993,2400.1,2399.8,0.25728198]
[1730764794447,1.30783993,2400.1,2399.5,0.7834]
[1730764794647,1.30783993,2400.1,2399.6,0.66878006]
[1730764794990,0.19856728,2400.0,2399.7,0.25721698]
[1730764795283,0.19856728,2400.0,2399.8,0.25721698]